Cogmind - Beta 15 @@@ ROGUE MODE // 2025.09.12 @ 12:15:44 Player: beans Result: Destroyed by S-27 Virus with Autogun Performance ------------- Evolutions (3) 1500 Regions Visited (6) 1200 Robots Destroyed (71) 355 Value Destroyed (1594) 1594 Prototype IDs (7) 140 Alien Tech Used (0) 0 Bonus (0) 0 TOTAL SCORE: 4789 Bonus ------- None Cogmind --------- Core Integrity 0/700 Matter 77/300 Energy 48/100 System Corruption 52% Temperature Cool (6) Movement Core (100) Ox1 Location -7/Factory Parts ------- > --- POWER (2) -------- (None) > --- PROPULSION (4) --- (None) > --- UTILITY (4) ------ Improved Signal Interpreter > --- WEAPON (3) ------- Improved Spread Laser > --- INVENTORY (5) ---- Improved Targeting Computer Advanced Reaction Control System Proton Missile Launcher Proton Missile Launcher Peak State ------------ > --- POWER ------------ Improved Deuterium Engine > --- PROPULSION ------- Advanced Treads Advanced Treads Advanced Treads Cooled Cesium-ion Thruster > --- UTILITY ---------- High-capacity Matter Pod High-capacity Matter Pod High-capacity Matter Pod Hacking Suite > --- WEAPON ----------- Advanced Beam Rifle Flak Gun Gauss Cannon > --- INVENTORY -------- Improved Sensor Array Improved Signal Interpreter Improved Targeting Computer Gauss Cannon Plasma Cutter [Rating: 38] Favorites ----------- Power Improved Deuterium Engine Engine Improved Deuterium Engine Power Core Nuclear Core Propulsion Aluminum Leg Treads Advanced Treads Leg Aluminum Leg Hover Unit Improved Airjet Flight Unit Cooled Cesium-ion Thruster Utility High-capacity Matter Pod Device Improved Weapon Cycler Storage High-capacity Matter Pod Processor Improved Signal Interpreter Hackware Hacking Suite Weapon Improved Assault Rifle Energy Gun Advanced Beam Rifle Ballistic Gun Improved Assault Rifle Ballistic Cannon Gauss Cannon Launcher Proton Missile Launcher Build | -11 -10 -9 -8 -7 -7 -7 ------- Run | Yrd Mat Mat Mat Fac Was Fac Slots Evolved 6 | . . 2 2 2 . . Power 1 | . . . . 1 . . Propulsion 2 | . . . 1 1 . . Utility 2 | . . 2 . . . . Weapon 1 | . . . 1 . . . Parts Attached 50 | 4 2 14 16 3 4 7 Power 5 | . 1 2 1 1 . . Engine 4 | . 1 2 . 1 . . Core 1 | . . . 1 . . . Reactor . | . . . . . . . Propulsion 18 | 2 . 5 7 . 1 3 Treads 8 | . . 2 6 . . . Leg 6 | 2 . 3 1 . . . Wheel . | . . . . . . . Hover 3 | . . . . . . 3 Flight 1 | . . . . . 1 . Utility 9 | . 1 4 . . 2 2 Device 3 | . . . . . 2 1 Storage 3 | . . 3 . . . . Processor 2 | . 1 . . . . 1 Hackware 1 | . . 1 . . . . Protection . | . . . . . . . Artifact . | . . . . . . . Weapon 18 | 2 . 3 8 2 1 2 Energy Gun 2 | . . . 1 . . 1 Energy Cannon . | . . . . . . . Ballistic Gun 12 | 2 . 3 6 1 . . Ballistic Cannon 3 | . . . 1 1 1 . Launcher 1 | . . . . . . 1 Special Weapon . | . . . . . . . Impact Weapon . | . . . . . . . Slashing Weapon . | . . . . . . . Piercing Weapon . | . . . . . . . Special Melee Weapon . | . . . . . . . Unidentified Prototypes 7 | . . 2 1 . 1 3 Corrupted Parts 2 | . . 1 . . 1 . System Corruption 20 | . . 10 . . 10 . Parts Lost 26 | . . 1 10 . 9 6 Power 3 | . . 1 1 . 1 . Propulsion 7 | . . . 3 . 2 2 Utility 6 | . . . . . 3 3 Weapon 10 | . . . 6 . 3 1 Highest Loss Streak 7 | . . 1 7 . 7 6 To Critical Strikes 1 | . . . . . 1 . Average Backups 3 | . 1 3 3 5 4 3 Power . | . . . . . . . Propulsion . | . . 1 . . . . Utility 1 | . . . 1 3 3 1 Weapon 1 | . . 2 1 1 1 1 Tool/Special . | . . . . . . . Unused Backups 5 | . . 1 . . 1 3 Power . | . . . . . . . Propulsion . | . . . . . . . Utility 2 | . . . . . . 2 Weapon 2 | . . 1 . . . 1 Tool/Special 1 | . . . . . 1 . Average Slot Usage (%) 68 | . 69 84 81 81 43 40 Engine 2 | . 3 4 . 4 3 . Treads 8 | . . 3 13 23 10 . Leg 7 | . 28 18 4 . . . Device 4 | . . . . . . 21 Storage 18 | . . 32 27 23 12 . Processor 2 | . 8 2 . . . 6 Hackware 4 | . . . 9 7 3 . Energy Gun 1 | . . . . 7 3 . Ballistic Gun 13 | . 28 22 20 7 3 . Ballistic Cannon 4 | . . . 4 7 4 6 Peak Build Rating 38 | 4 6 16 24 32 38 31 Average Rating 17 | 2 4 11 16 28 16 23 On Entrance 13 | . 4 6 16 24 32 10 Naked Turns 106 | . . . . . 106 . Heaviest Build 35 | 3 8 25 28 35 35 19 Greatest Support 66 | 20 20 40 66 66 66 12 Greatest Overweight (x) 5 | . . 2 5 . 3 3 Average Overweight (x) . | . . . . . . 1 Largest Inventory Capacity 5 | 5 5 5 5 5 5 5 Average Capacity 5 | 5 5 5 5 5 5 5 Most Carried 5 | 2 5 5 5 5 5 5 Average Carried 3 | . 1 3 3 4 4 3 Final Capacity 5 | 5 5 5 5 5 5 5 Final Carried 5 | . 5 5 5 5 3 4 Class Distribution -------------------- 55% | Mutant 35% | Gunner 6% | Scavenger-Gunner Dominant Class ---------------- Mutant | -10/Materials Mutant | -9/Materials Gunner | -8/Materials Gunner | -7/Factory Mutant | -7/Waste Mutant | -7/Factory Resources | -11 -10 -9 -8 -7 -7 -7 ----------- Run | Yrd Mat Mat Mat Fac Was Fac Matter Collected 2741 | 168 135 1078 1006 222 130 2 Remotely . | . . . . . . . Salvage Created 2878 | . 198 985 1159 225 264 47 Parts 161 | . 13 62 72 6 . 8 Haulers Intercepted 5 | . 2 2 1 . . . Recyclers Shooed 4 | . 1 2 1 . . . Parts Field Recycled . | . . . . . . . Retrieved Matter . | . . . . . . . Parts Self-Destructed . | . . . . . . . Prevented . | . . . . . . . Kills | -11 -10 -9 -8 -7 -7 -7 ------- Run | Yrd Mat Mat Mat Fac Was Fac Combat Hostiles Destroyed 36 | . 4 12 17 2 1 . Guns 33 | . 4 11 17 . 1 . Cannons 2 | . . . . 2 . . AOE 1 | . . 1 . . . . Classes Destroyed 13 | . 4 7 . 1 1 . Worker 6 | . . 2 4 . . . Builder 11 | . . 2 7 . . 2 Hauler 5 | . 2 2 1 . . . Recycler 7 | . . 3 2 2 . . Operator 1 | . . 1 . . . . Watcher 5 | . 1 3 1 . . . Swarmer 9 | . 3 3 3 . . . Grunt 12 | . 1 5 6 . . . Brawler 2 | . . 1 1 . . . Duelist 3 | . . 1 2 . . . Sentry 8 | . . 2 5 1 . . Hunter 1 | . . . . 1 . . Compactor 1 | . . . . . 1 . Best Kill Streak 13 | . 3 9 13 2 1 2 Combat Bots Only 9 | . 3 5 9 1 1 . Max Kills in Single Turn 3 | . 1 2 3 1 1 2 Gunslinging 1 | . . 1 1 . . . Exploded 1 | . . 1 . . . . Melee . | . . . . . . . Uniques/NPCs Destroyed . | . . . . . . . Combat | -11 -10 -9 -8 -7 -7 -7 -------- Run | Yrd Mat Mat Mat Fac Was Fac Hostile Shots Fired 342 | . 13 64 155 24 10 76 Missed 113 | . 3 23 48 8 . 31 Hits 229 | . 10 41 107 16 10 45 Melee 14 | . . . 4 . 10 . Projectile 215 | . 10 41 103 16 . 45 Critical Strikes 11 | . . 1 4 . 6 . Part Disruptions 1 | . . 1 . . . . Damage Taken 3570 | . 88 534 1591 169 504 684 Core 1104 | . 10 92 290 6 419 287 Absorbed by Shields . | . . . . . . . Core Remaining (%) 80 | 100 96 77 47 . . . Volleys Fired 226 | . 29 70 85 10 20 12 Largest 3 | . 2 2 3 3 3 1 Hottest 129 | . 40 46 117 129 129 75 Shots Fired 522 | . 58 140 229 30 53 12 Gun 450 | . 58 140 201 20 28 3 Cannon 70 | . . . 28 10 25 7 Launcher 2 | . . . . . . 2 Special . | . . . . . . . Kinetic 492 | . 58 140 228 20 39 7 Thermal 28 | . . . 1 10 14 3 Explosive . | . . . . . . . Electromagnetic 2 | . . . . . . 2 Robot Hit Streak 13 | . 4 13 11 7 9 1 Robot Miss Streak 10 | . 5 8 10 4 4 4 Penetration Max 1 | . . . . . 1 . Secondary Targets 10 | . . 4 6 . . . Max Gunslinging Chain 2 | . . 1 2 . . . Shots Hit Robots 302 | . 28 85 126 16 41 6 Core Hits 139 | . 10 42 56 9 14 8 Critical Kills 2 | . 1 . 1 . . . Critical Parts Destroyed . | . . . . . . . Critical Strikes 5 | . 1 . 1 1 2 . Burn 1 | . . . . . 1 . Destroy 2 | . 1 . 1 . . . Blast 2 | . . . . 1 1 . Melee Attacks . | . . . . . . . Impact . | . . . . . . . Slashing . | . . . . . . . Piercing . | . . . . . . . Sneak Attacks . | . . . . . . . Combat Hostiles . | . . . . . . . Follow-up Attacks . | . . . . . . . Damage Inflicted 5419 | . 289 1353 2111 287 1105 274 Guns 4160 | . 289 1226 1872 196 544 33 Cannons 947 | . . . 239 91 561 56 Explosions 312 | . . 127 . . . 185 Melee . | . . . . . . . Ramming . | . . . . . . . Kinetic 4754 | . 289 1226 2111 187 885 56 Thermal 353 | . . . . 100 220 33 Explosive . | . . . . . . . Electromagnetic 312 | . . 127 . . . 185 Impact . | . . . . . . . Slashing . | . . . . . . . Piercing . | . . . . . . . Highest Corruption 52 | . . 10 . 1 48 52 Average Corruption 31 | . . 10 . 1 19 49 Corruption Purged . | . . . . . . . Corruption Blocked . | . . . . . . . Effects 65 | . . 1 . 1 18 45 Message Errors 13 | . . . . . 2 11 Matter Fused 16 | . . 1 . . 4 11 Heat Flow Errors 7 | . . . . . 2 5 Energy Discharges 6 | . . . . 1 1 4 Parts Fused 1 | . . . . . . 1 Data Loss (minor) 5 | . . . . . 1 4 Data Loss (major) 2 | . . . . . 2 . Misfires 1 | . . . . . . 1 Alerts 3 | . . . . . 2 1 Misdirections 10 | . . . . . 4 6 Weapon Failures 1 | . . . . . . 1 Overload Shots . | . . . . . . . Overflow Damage 1 | . . . . . . 1 Projectiles . | . . . . . . . Explosions 1 | . . . . . . 1 Melee . | . . . . . . . Knockbacks 2 | . . . 2 . . . Impact . | . . . . . . . Kinetic 2 | . . . 2 . . . Secondary . | . . . . . . . Self-Inflicted Damage 88 | . . 83 . . . 5 Shots 4 | . . 3 . . . 1 Rammed . | . . . . . . . Targets Rammed . | . . . . . . . Kicked . | . . . . . . . Crushed . | . . . . . . . Highest Temperature 420 | . 1 19 64 117 261 420 Average Temperature 70 | . 1 9 23 40 86 126 Received Heat Transfer 1032 | . 18 159 720 30 6 99 Effects 3 | . . . . . . 3 Interference 3 | . . . . . . 3 Siege Activations . | . . . . . . . Martial Activations . | . . . . . . . Shielding Activations . | . . . . . . . Robots Disrupted . | . . . . . . . Combat Hostiles . | . . . . . . . Robots Corrupted . | . . . . . . . Combat Hostiles . | . . . . . . . Parts Fried . | . . . . . . . Impact Corruptions . | . . . . . . . Robots Melted . | . . . . . . . Combat Hostiles . | . . . . . . . Parts Melted . | . . . . . . . Heat Transferred 691 | . . . . 185 481 25 Parts Sabotaged . | . . . . . . . Parts Stolen . | . . . . . . . Parts Stripped . | . . . . . . . Power Chain Reactions 3 | . . 3 . . . . Alert | -11 -10 -9 -8 -7 -7 -7 ------- Run | Yrd Mat Mat Mat Fac Was Fac Maximum Alert Level 1 | . . 1 1 . . . Low Security (%) 86 | 100 100 60 79 100 100 100 Level 1 13 | . . 39 20 . . . Level 2 . | . . . . . . . Level 3 . | . . . . . . . Level 4 . | . . . . . . . Level 5 . | . . . . . . . High Security . | . . . . . . . Max Security . | . . . . . . . Peak Influence 286 | . 60 286 239 47 2 149 Initial 98 | . . 20 98 47 . . Average 84 | . 10 169 161 13 . 9 Influence Increases 1461 | . 111 503 530 71 5 241 Destroy 0b10 Robot/C 700 | . 80 240 340 40 . . Destroy 0b10 Robot/NC 175 | . 15 65 75 10 . 10 Destroy Leader 200 | . 16 70 94 20 . . Successful Hack 18 | . . . . . . 18 Disable Machine 180 | . . 90 15 . . 75 Destroy Structure 23 | . . 8 6 1 5 3 Lose Combat Pursuer 165 | . . 30 . . . 135 Influence Decreases 1360 | . 61 318 659 177 4 141 Entered New Map 227 | . . 30 137 59 . 1 Time Decay 966 | . 61 278 422 118 4 83 Lost Part 167 | . . 10 100 . . 57 Squads Dispatched 6 | . . 1 3 . . 2 Investigation . | . . . . . . . Extermination 1 | . . . . . . 1 Reinforcement 2 | . . 1 . . . 1 Assault . | . . . . . . . Garrison 3 | . . . 3 . . . Intercept . | . . . . . . . Searches Triggered . | . . . . . . . Construction Impeded . | . . . . . . . Haulers Reinforced . | . . . . . . . Active Scanning Responses . | . . . . . . . Cargo Convoy Interrupts . | . . . . . . . Stealth | -11 -10 -9 -8 -7 -7 -7 --------- Run | Yrd Mat Mat Mat Fac Was Fac Distress Signals 5 | . . 3 2 . . . Communications Jammed . | . . . . . . . Distress Signals . | . . . . . . . Times Spotted 86 | . 7 28 24 2 7 18 Peak Tracking Total 11 | . 3 6 7 1 4 11 Tactical Retreats 4 | . . 2 . . . 2 Traps | -11 -10 -9 -8 -7 -7 -7 ------- Run | Yrd Mat Mat Mat Fac Was Fac Traps Triggered 5 | . . . . 2 . 3 Indirectly . | . . . . . . . Trap Hack Attempts . | . . . . . . . Triggered . | . . . . . . . Disarmed . | . . . . . . . Reprogrammed . | . . . . . . . Reused . | . . . . . . . Traps Extracted . | . . . . . . . Installed . | . . . . . . . Triggered . | . . . . . . . Machines | -11 -10 -9 -8 -7 -7 -7 ---------- Run | Yrd Mat Mat Mat Fac Was Fac Machines Disabled 12 | . . 6 1 . . 5 Max in Single Turn 2 | . . 2 1 . . 2 Machines Repaired . | . . . . . . . Machines Dismantled . | . . . . . . . Machines Sabotaged . | . . . . . . . Overloaded Fab Kills . | . . . . . . . Hacking | -11 -10 -9 -8 -7 -7 -7 --------- Run | Yrd Mat Mat Mat Fac Was Fac Machines Accessed 6 | . . . . 1 . 5 Terminals 3 | . . . . 1 . 2 Fabricators 3 | . . . . . . 3 Repair Stations . | . . . . . . . Recycling Units . | . . . . . . . Scanalyzers . | . . . . . . . Garrison Access . | . . . . . . . Total Hacks 9 | . . . . 2 . 7 Successful 3 | . . . . 1 . 2 Failed 6 | . . . . 1 . 5 Catastrophic 2 | . . . . . . 2 Database Lockouts . | . . . . . . . Manual 5 | . . . . 2 . 3 Terminals 5 | . . . . 2 . 3 Fabricators 4 | . . . . . . 4 Repair Stations . | . . . . . . . Recycling Units . | . . . . . . . Scanalyzers . | . . . . . . . Garrison Access . | . . . . . . . Terminal Hacks 1 | . . . . 1 . . Level Access Points 1 | . . . . 1 . . Fabricator Hacks 2 | . . . . . . 2 Network Status 1 | . . . . . . 1 Build 1 | . . . . . . 1 Repair Station Hacks . | . . . . . . . Recycling Unit Hacks . | . . . . . . . Scanalyzer . | . . . . . . . Garrison Access Hacks . | . . . . . . . Unauthorized Hacks . | . . . . . . . Terminals . | . . . . . . . Fabricators . | . . . . . . . Repair Stations . | . . . . . . . Recycling Units . | . . . . . . . Scanalyzers . | . . . . . . . Garrison Access . | . . . . . . . Data Cores Recovered 1 | . . 1 . . . . Used . | . . . . . . . Hacking Detections 2 | . . . . . . 2 Full Trace Events . | . . . . . . . Feedback Events . | . . . . . . . Feedback Blocked . | . . . . . . . Robot Schematics Acquired . | . . . . . . . Robots Built . | . . . . . . . Authchips . | . . . . . . . Time . | . . . . . . . Total Robot Build Rating . | . . . . . . . Part Schematics Acquired . | . . . . . . . Parts Built 2 | . . . . . . 2 Authchips . | . . . . . . . Time 58 | . . . . . . 58 Total Part Build Rating 14 | . . . . . . 14 Parts Repaired . | . . . . . . . Time . | . . . . . . . Parts Recycled . | . . . . . . . Recycled Matter . | . . . . . . . Retrieved Matter . | . . . . . . . Retrieved Components . | . . . . . . . Parts Scanalyzed . | . . . . . . . Part Schematics Acquired . | . . . . . . . Parts Damaged . | . . . . . . . Bothacking | -11 -10 -9 -8 -7 -7 -7 ------------ Run | Yrd Mat Mat Mat Fac Was Fac Used RIF Installer . | . . . . . . . Robots Hacked . | . . . . . . . Non-combat . | . . . . . . . Combat . | . . . . . . . Robot Hacks Applied . | . . . . . . . Relay Couplers Released . | . . . . . . . Fabnet Peak Effective % . | . . . . . . . Robots Rewired . | . . . . . . . Allies Hacked . | . . . . . . . Hacks Repelled . | . . . . . . . Allies | -11 -10 -9 -8 -7 -7 -7 -------- Run | Yrd Mat Mat Mat Fac Was Fac Total Allies . | . . . . . . . Largest Group . | . . . . . . . Highest-Rated Group . | . . . . . . . Highest-Rated Ally . | . . . . . . . Total Orders . | . . . . . . . Ally Attacks . | . . . . . . . Total Damage . | . . . . . . . Kills . | . . . . . . . Allies Corrupted . | . . . . . . . Allies Melted . | . . . . . . . Intel | -11 -10 -9 -8 -7 -7 -7 ------- Run | Yrd Mat Mat Mat Fac Was Fac Active Infowar (turns) 905 | . 174 146 . . 1 584 Sensors 585 | . . . . . 1 584 T.N.C. 320 | . 174 146 . . . . Robot Analysis Total . | . . . . . . . Derelict Logs Recovered . | . . . . . . . Drone Launches . | . . . . . . . Drone Recoveries . | . . . . . . . Exploration | -11 -10 -9 -8 -7 -7 -7 ------------- Run | Yrd Mat Mat Mat Fac Was Fac Turns Passed 3353 | 39 275 604 1022 362 348 703 Spaces Moved 1905 | 32 154 263 426 222 328 480 Core 382 | 10 . . 12 . 253 107 Treads 641 | . . 45 299 222 75 . Legs 509 | 22 154 218 115 . . . Wheels . | . . . . . . . Hover 373 | . . . . . . 373 Flight . | . . . . . . . Fastest Speed 46 | 50 120 120 120 145 50 46 Average Speed 127 | 98 120 136 168 145 80 116 Slowest Speed 300 | 120 120 260 300 145 225 200 Overloaded Moves 67 | . . . . . . 67 Propulsion Burnouts . | . . . . . . . Robots Hopped . | . . . . . . . Potential Cave-ins . | . . . . . . . Cave-ins Triggered . | . . . . . . . Exploration Rate (%) 27 | 3 26 21 33 7 87 15 Regions Visited 6 Branch Regions . Pre-discovered Areas . | . . . . . . . Known Exits Taken . | . . . . . . . Unknown Exits Taken 4 | 1 1 1 1 . . . Scrap Searched . | . . . . . . . Spaces Dug . | . . . . . . . Terrain Destroyed 19 | . . 7 3 1 5 3 Melee . | . . . . . . . Projectile 12 | . . . 3 1 5 3 AOE 7 | . . 7 . . . . Terrain Rammed . | . . . . . . . Walls Destroyed . | . . . . . . . Machines Disabled . | . . . . . . . Actions | -11 -10 -9 -8 -7 -7 -7 --------- Run | Yrd Mat Mat Mat Fac Was Fac Total 2384 | 39 192 370 556 243 370 614 Wait 118 | . 1 8 3 . 3 103 Move 1900 | 31 153 262 425 222 327 480 Hop . | . . . . . . . Pick Up 46 | 4 7 8 13 3 4 7 Fast Attach 13 | . . 4 2 1 5 1 Attach 38 | 4 2 6 11 . 7 8 Detach 4 | . . . . . 2 2 Swap 16 | . . 4 10 2 . . Drop 23 | . . 8 7 5 2 1 Fire 226 | . 29 70 85 10 20 12 Melee . | . . . . . . . Ram . | . . . . . . . Kick . | . . . . . . . Crush . | . . . . . . . Escape Stasis . | . . . . . . . Rewire . | . . . . . . . Trap . | . . . . . . . Miscellaneous . | . . . . . . . Route ------- -11/Scrapyard -10/Materials -9/Materials -8/Materials -7/Factory (discovered 4 exits: Fac x4) -7/Waste -7/Factory History --------- Turn | Location | Event 4 | -11/Scrapyard | Discovered new exit (range 15) 40 | -11/Scrapyard | Entered Materials 255 | -10/Materials | Discovered new exit (range 15) 306 | -10/Materials | Build established: Mutant 315 | -10/Materials | Entered another Materials area 315 | -9/Materials | Evolved 2 slots: Utility x2 753 | -9/Materials | Discovered new exit (range 16) 917 | -9/Materials | System corruption reached 10% 919 | -9/Materials | Entered another Materials area 919 | -8/Materials | Evolved 2 slots: Propulsion x1, Weapon x1 1050 | -8/Materials | Garrison activated, responded to threat 1109 | -8/Materials | Destroyed 9 combat bots 1189 | -8/Materials | Core integrity fell below 50% 1217 | -8/Materials | Lost 7 parts (1p1n5w) 1534 | -8/Materials | Build established: Gunner 1903 | -8/Materials | Discovered new exit (range 15) 1941 | -8/Materials | Entered Factory 1941 | -7/Factory | Evolved 2 slots: Power x1, Propulsion x1 2084 | -7/Factory | Identified exit to Factory 2303 | -7/Factory | Sucked down chute 2303 | -7/Factory | Entered Waste 2318 | -7/Waste | EMP discharged 2318 | -7/Waste | System corruption reached 10% 2337 | -7/Waste | Spotted C-40 Crusher 2376 | -7/Waste | Spotted C-40 Crusher 2393 | -7/Waste | Destroyed C-40 Crusher 2411 | -7/Waste | Spotted C-40 Crusher 2418 | -7/Waste | EMP discharged 2421 | -7/Waste | Spotted C-40 Crusher 2421 | -7/Waste | Spotted C-40 Crusher 2449 | -7/Waste | Crushed by Compactor (1 part destroyed, 1 dropped) 2463 | -7/Waste | Crushed by Compactor (1 part destroyed, 2 dropped) 2466 | -7/Waste | Crushed by Compactor (1 part destroyed, 1 dropped) 2469 | -7/Waste | Crushed by Compactor (1 part destroyed, 1 dropped) 2477 | -7/Waste | Crushed by Compactor (1 part destroyed, 1 dropped) 2481 | -7/Waste | Crushed by Compactor (1 part destroyed, 2 dropped) 2512 | -7/Waste | Lost 7 parts (1p2n2u2w) 2514 | -7/Waste | Spotted C-40 Crusher 2518 | -7/Waste | EMP discharged 2535 | -7/Waste | Crushed by Compactor (1 part destroyed, 1 dropped) 2538 | -7/Waste | Crushed by Compactor (1 part destroyed) 2605 | -7/Waste | Core integrity fell below 50% 2618 | -7/Waste | EMP discharged 2618 | -7/Waste | System corruption reached 30% 2637 | -7/Waste | Discovered new exit (range 13) 2651 | -7/Waste | Entered Factory 2751 | -7/Factory | Build established: Mutant 2795 | -7/Factory | Fabricated Adv. Reaction Control System (x2) 3335 | -7/Factory | Core integrity fell below 20% 3354 | -7/Factory | Destroyed by S-27 Virus with Autogun Last Messages --------------- U-05 Engineer lays Concrete. K-01 Serf cleans the Assembly Bed. U-05 Engineer lays Concrete. Destroyed Unknown Special Weapon. Assembly Bed disabled. U-05 Engineer destroyed. System corrupted: Energy discharge (-3). K-01 Serf cleans the Assembly Bed. Acquired Prototype Hover Unit. Identified Cld. Airjet. Imp. Airjet destroyed. TYOR6OZLRKH<1KGCZA9VGVUAFQTYRE=3EGSYTK P-60 Hacker resets U-05 Engineer, system corruption cleaned. Imp. Sensor Array destroyed. Connecting with Terminal... Matter Filter destroyed. S-27 Virus destroyed. Imp. Weapon Cycler destroyed. Cld. Airjet destroyed. Map ----- +----------------------------------------------------+ | ?????????????????????????????????????????????????? | | ?????????????????????????????????????????????????? | | ?????????????????????????????????????????????????? | | ?????????????????????????????????????????????????? | | ?????????????????????????????????????????????????? | | ?????????????????????????????????????????????????? | | ?????????????????????????????????????????????????? | | ?????????????????????????????????????????????????? | | ?????????????????????????????????????????????????? | | ?????????????????????????????????????????????????? | | ?????????????????????????????????????????????????? | | ????????????????###############??????????????????? | | ???????????????? #??????????????????? | | ????????????????"" """ #??????????????????? | | ????????????????"" """ #??????????????????? | | ?????????????# """ """ #??????????????????? | | ?????????????# """ #??????????????????? | | ?????????????# """ #??????????????????? | | ?????????????# #??????????????????? | | ????????????# [ #??????????????????? | | ?????????????# #??????????????????? | | ?????????##########+##+#####+##??????????????????? | | ?????????# s #???????????????????? | | ?????????# #???????????????????? | | ?????????# k #???????????????????? | | ?????????# [%= @ #???????????????????? | | ?????????# = ####???????????????????? | | ?????????# #??????????????????????? | | ?????????# ps #??????????????????????? | | ?????????# ##########??????????????????????? | | ????????## ##?? ??????????????????????????? | | ????????# #? ???????????????????????????? | | ????????# #? ????????????????????????????? | | ????????# + ????????????????????????????? | | ????????# # ?????????????????????????????? | | ????????+ T +??????????????????????????????? | | ????????# #??????????????????????????????? | | ????????# #??????????????????????????????? | | ????????# #??????????????????????????????? | | ????????# / #??????????????????????????????? | | ????????### ###??????????????????????????????? | | ??????????# #????????????????????????????????? | | ??????????# #????????????????????????????????? | | ??????????# #????????????????????????????????? | | ??????????# #????????????????????????????????? | | ??????????# #????????????????????????????????? | | ?????????## ###########??????????????????????? | | ?????????# ????????????????????? | | ?????????# ????????????????????? | | ?????????# ????????????????????? | +----------------------------------------------------+ Best States ------------- Heat Dissipation 34 Energy Generation 16 Energy Capacity 290 Matter Stores 900 Matter Capacity 900 Sight Range 16 Robot Scan Range 15 Terrain Scan Density 10 Weapon Cycling 20 Evasion (%) 55 Recoil Reduction 3 Matter Filtering 30 Offensive Hacking 10 Item Schematics ----------------- None Robot Schematics ------------------ None Fabricated ------------ Adv. Reaction Control System | x2 | -7/Factory | Preloaded Repaired ---------- Nothing Alien Tech Used ----------------- None Achievements -------------- None Challenges ------------ None Game ------ Seed ReflectiveEtherialCoupler Manual? 0 Play Time 00:23:36 Cumulative 133.4 hours Start 2025.09.12 @ 11:53:22 End 2025.09.12 @ 12:15:44 Sessions 1 Manual Loads 0 Difficulty Rogue Special Mode None Game No. 459 Rogue 459 Adventurer 0 Explorer 0 Win Type - Total 0 Types 0/0/0/0/0/0/0/0/0/0 Lore% 51 Gallery% 48 Achievement% 35 Wizard Run 0 Options --------- Layout 2 ASCII 0 Keyboard 0 Movement Mouse Keybinds 0 Fullscreen 2 Font 24/Smallcaps Map View 50x44 Zoom Use 0% Tactical HUD 0 Map Filters NONE Filters NONE Steam 1 RUN: 037cb058-bd07-4d9b-884c-d79c188cd845